Cogmind - Beta 15 @@@ ROGUE MODE // 2025.06.13 @ 03:58:02 Player: Storm Mk9 Result: Destroyed by D-53 Grenadier with Mini Grenade Launcher Performance ------------- Evolutions (0) 0 Regions Visited (2) 400 Robots Destroyed (14) 70 Value Destroyed (244) 244 Prototype IDs (0) 0 Alien Tech Used (0) 0 Bonus (0) 0 TOTAL SCORE: 714 Bonus ------- None Cogmind --------- Core Integrity 0/250 Matter 210/300 Energy 99/100 System Corruption 5% Temperature Cool (0) Movement Rolling (80) Location -10/Mines Parts ------- > --- POWER (1) -------- (None) > --- PROPULSION (2) --- Aluminum Leg Wheel > --- UTILITY (2) ------ Improved Heat Sink Small Storage Unit > --- WEAPON (2) ------- Medium Laser Light Assault Rifle > --- INVENTORY (8) ---- Grenade Launcher Peak State ------------ > --- POWER ------------ Ion Engine > --- PROPULSION ------- Aluminum Leg Aluminum Leg > --- UTILITY ---------- Improved Heat Sink Small Storage Unit > --- WEAPON ----------- Light Assault Rifle Light Assault Rifle > --- INVENTORY -------- Light Ion Engine Medium Laser Light Assault Rifle Grenade Launcher [Rating: 9] Favorites ----------- Power Ion Engine Engine Ion Engine Propulsion Aluminum Leg Leg Aluminum Leg Wheel Wheel Utility Small Storage Unit Device Seismic Detector Storage Small Storage Unit Weapon Light Assault Rifle Energy Gun Small Laser Ballistic Gun Light Assault Rifle Launcher Grenade Launcher Build | -11 -10 -10 ------- Run | Yrd Mat Min Slots Evolved . | . . . Power . | . . . Propulsion . | . . . Utility . | . . . Weapon . | . . . Parts Attached 16 | 7 4 5 Power 2 | 1 . 1 Engine 2 | 1 . 1 Core . | . . . Reactor . | . . . Propulsion 4 | 2 1 1 Treads . | . . . Leg 3 | 2 1 . Wheel 1 | . . 1 Hover . | . . . Flight . | . . . Utility 3 | 2 1 . Device 2 | 1 1 . Storage 1 | 1 . . Processor . | . . . Hackware . | . . . Protection . | . . . Artifact . | . . . Weapon 7 | 2 2 3 Energy Gun 3 | 2 . 1 Energy Cannon . | . . . Ballistic Gun 3 | . 2 1 Ballistic Cannon . | . . . Launcher 1 | . . 1 Special Weapon . | . . . Impact Weapon . | . . . Slashing Weapon . | . . . Piercing Weapon . | . . . Special Melee Weapon . | . . . Unidentified Prototypes . | . . . Parts Lost 9 | . 4 5 Power 2 | . . 2 Propulsion 2 | . 1 1 Utility 1 | . 1 . Weapon 4 | . 2 2 Highest Loss Streak 5 | . 4 5 To Critical Strikes . | . . . Average Backups 3 | 2 3 1 Power . | . 1 . Propulsion . | . . . Utility . | . . . Weapon 2 | 1 2 1 Tool/Special . | . . . Unused Backups 1 | . 1 . Power 1 | . 1 . Propulsion . | . . . Utility . | . . . Weapon . | . . . Tool/Special . | . . . Average Slot Usage (%) 93 | . 96 84 Engine 11 | . 14 3 Leg 24 | . 27 16 Wheel 1 | . . 7 Device 12 | . 12 14 Storage 14 | . 14 14 Energy Gun 17 | . 19 10 Ballistic Gun 9 | . 7 15 Peak Build Rating 9 | 7 9 9 Average Rating 6 | 4 7 7 On Entrance 5 | . 7 9 Naked Turns . | . . . Heaviest Build 14 | 14 14 13 Greatest Support 20 | 20 20 20 Greatest Overweight (x) 1 | . 1 . Average Overweight (x) . | . . . Largest Inventory Capacity 8 | 8 8 8 Average Capacity 7 | 6 8 8 Most Carried 5 | 5 5 4 Average Carried 3 | 2 3 1 Final Capacity 8 | 8 8 8 Final Carried 4 | 2 4 1 Class Distribution -------------------- 100% | Mutant Dominant Class ---------------- Mutant | -10/Materials Mutant | -10/Mines Resources | -11 -10 -10 ----------- Run | Yrd Mat Min Matter Collected 347 | 222 96 29 Remotely . | . . . Salvage Created 338 | 50 239 49 Parts 28 | 8 15 5 Haulers Intercepted . | . . . Recyclers Shooed . | . . . Parts Field Recycled . | . . . Retrieved Matter . | . . . Parts Self-Destructed . | . . . Prevented . | . . . Kills | -11 -10 -10 ------- Run | Yrd Mat Min Combat Hostiles Destroyed 25 | . 7 18 Guns 10 | . 7 3 AOE 15 | . . 15 Classes Destroyed 5 | 1 2 2 Worker 1 | . . 1 Tunneler 3 | 3 . . Swarmer 6 | . 3 3 Grunt 4 | . 4 . Assembled 15 | . . 15 Best Kill Streak 19 | 3 3 19 Combat Bots Only 18 | . 3 18 Max Kills in Single Turn 4 | 1 1 4 Gunslinging . | . . . Exploded 4 | . . 4 Melee . | . . . Uniques/NPCs Destroyed . | . . . Combat | -11 -10 -10 -------- Run | Yrd Mat Min Hostile Shots Fired 94 | . 62 32 Missed 29 | . 17 12 Hits 65 | . 45 20 Melee 8 | . . 8 Projectile 57 | . 45 12 AOE 1 | . . 1 Damage Taken 982 | . 537 445 Core 285 | . 110 175 Absorbed by Shields . | . . . Core Remaining (%) 100 | 100 . . Volleys Fired 52 | 8 30 14 Largest 2 | 1 2 2 Hottest 80 | 40 80 70 Shots Fired 90 | 8 60 22 Gun 84 | 8 60 16 Cannon . | . . . Launcher 6 | . . 6 Special . | . . . Kinetic 52 | . 44 8 Thermal 24 | 8 8 8 Explosive 6 | . . 6 Electromagnetic 8 | . 8 . Robot Hit Streak 8 | 6 8 5 Robot Miss Streak 4 | 1 4 4 Penetration Max . | . . . Secondary Targets . | . . . Shots Hit Robots 60 | 7 41 12 Core Hits 56 | 3 17 36 Critical Kills . | . . . Critical Parts Destroyed . | . . . Critical Strikes . | . . . Melee Attacks . | . . . Impact . | . . . Slashing . | . . . Piercing . | . . . Sneak Attacks . | . . . Combat Hostiles . | . . . Follow-up Attacks . | . . . Damage Inflicted 1695 | 78 412 1205 Guns 588 | 78 412 98 Cannons . | . . . Explosions 1107 | . . 1107 Melee . | . . . Ramming . | . . . Kinetic 291 | . 257 34 Thermal 219 | 78 77 64 Explosive 1107 | . . 1107 Electromagnetic 78 | . 78 . Impact . | . . . Slashing . | . . . Piercing . | . . . Highest Corruption 5 | . . 5 Average Corruption 4 | . . 4 Corruption Purged . | . . . Corruption Blocked . | . . . Effects 3 | . . 3 Energy Discharges 1 | . . 1 Data Loss (minor) 2 | . . 2 Overload Shots . | . . . Overflow Damage 26 | . . 26 Projectiles . | . . . Explosions 26 | . . 26 Melee . | . . . Knockbacks . | . . . Impact . | . . . Kinetic . | . . . Secondary . | . . . Self-Inflicted Damage 40 | . . 40 Shots 1 | . . 1 Rammed . | . . . Targets Rammed . | . . . Kicked . | . . . Crushed . | . . . Highest Temperature 231 | . 231 1 Average Temperature 103 | . 105 1 Received Heat Transfer 293 | . 273 20 Siege Activations . | . . . Martial Activations . | . . . Shielding Activations . | . . . Robots Disrupted . | . . . Combat Hostiles . | . . . Robots Corrupted . | . . . Combat Hostiles . | . . . Parts Fried 1 | . 1 . Impact Corruptions . | . . . Robots Melted . | . . . Combat Hostiles . | . . . Parts Melted . | . . . Heat Transferred 535 | 175 175 185 Parts Sabotaged . | . . . Parts Stolen . | . . . Parts Stripped . | . . . Power Chain Reactions . | . . . Alert | -11 -10 -10 ------- Run | Yrd Mat Min Maximum Alert Level . | . . . Low Security (%) 100 | 100 100 100 Level 1 . | . . . Level 2 . | . . . Level 3 . | . . . Level 4 . | . . . Level 5 . | . . . High Security . | . . . Max Security . | . . . Peak Influence 85 | 10 85 85 Initial 28 | . 6 28 Average 24 | 1 23 44 Influence Increases 297 | 15 185 97 Destroy 0b10 Robot/C 200 | . 140 60 Destroy 0b10 Robot/NC 20 | 15 . 5 Destroy Leader 40 | . 30 10 Destroy Structure 22 | . . 22 Lose Combat Pursuer 15 | . 15 . Influence Decreases 272 | 5 120 147 Entered New Map 51 | . 4 47 Time Decay 131 | 5 76 50 Lost Part 90 | . 40 50 Squads Dispatched . | . . . Investigation . | . . . Extermination . | . . . Reinforcement . | . . . Assault . | . . . Garrison . | . . . Intercept . | . . . Searches Triggered . | . . . Construction Impeded . | . . . Haulers Reinforced . | . . . Active Scanning Responses . | . . . Cargo Convoy Interrupts . | . . . Stealth | -11 -10 -10 --------- Run | Yrd Mat Min Distress Signals . | . . . Communications Jammed . | . . . Distress Signals . | . . . Times Spotted 37 | . 12 25 Peak Tracking Total 20 | . 6 20 Tactical Retreats 2 | . 1 1 Traps | -11 -10 -10 ------- Run | Yrd Mat Min Traps Triggered . | . . . Indirectly . | . . . Trap Hack Attempts . | . . . Triggered . | . . . Disarmed . | . . . Reprogrammed . | . . . Reused . | . . . Traps Extracted . | . . . Installed . | . . . Triggered . | . . . Machines | -11 -10 -10 ---------- Run | Yrd Mat Min Machines Disabled . | . . . Max in Single Turn . | . . . Machines Repaired . | . . . Machines Dismantled . | . . . Machines Sabotaged . | . . . Overloaded Fab Kills . | . . . Hacking | -11 -10 -10 --------- Run | Yrd Mat Min Machines Accessed 3 | . 3 . Terminals 3 | . 3 . Fabricators . | . . . Repair Stations . | . . . Recycling Units . | . . . Scanalyzers . | . . . Garrison Access . | . . . Total Hacks 5 | . 5 . Successful . | . . . Failed 5 | . 5 . Catastrophic . | . . . Database Lockouts . | . . . Manual 6 | . 6 . Terminals 5 | . 5 . Fabricators . | . . . Repair Stations . | . . . Recycling Units . | . . . Scanalyzers . | . . . Garrison Access . | . . . Terminal Hacks . | . . . Fabricator Hacks . | . . . Repair Station Hacks . | . . . Recycling Unit Hacks . | . . . Scanalyzer . | . . . Garrison Access Hacks . | . . . Unauthorized Hacks . | . . . Terminals . | . . . Fabricators . | . . . Repair Stations . | . . . Recycling Units . | . . . Scanalyzers . | . . . Garrison Access . | . . . Data Cores Recovered . | . . . Used . | . . . Hacking Detections 3 | . 3 . Full Trace Events . | . . . Feedback Events . | . . . Feedback Blocked . | . . . Robot Schematics Acquired . | . . . Robots Built . | . . . Authchips . | . . . Time . | . . . Total Robot Build Rating . | . . . Part Schematics Acquired . | . . . Parts Built . | . . . Authchips . | . . . Time . | . . . Total Part Build Rating . | . . . Parts Repaired . | . . . Time . | . . . Parts Recycled . | . . . Recycled Matter . | . . . Retrieved Matter . | . . . Retrieved Components . | . . . Parts Scanalyzed . | . . . Part Schematics Acquired . | . . . Parts Damaged . | . . . Bothacking | -11 -10 -10 ------------ Run | Yrd Mat Min Used RIF Installer . | . . . Robots Hacked . | . . . Non-combat . | . . . Combat . | . . . Robot Hacks Applied . | . . . Relay Couplers Released . | . . . Fabnet Peak Effective % . | . . . Robots Rewired . | . . . Allies Hacked . | . . . Hacks Repelled . | . . . Allies | -11 -10 -10 -------- Run | Yrd Mat Min Total Allies . | . . . Largest Group . | . . . Highest-Rated Group . | . . . Highest-Rated Ally . | . . . Total Orders . | . . . Ally Attacks . | . . . Total Damage . | . . . Kills . | . . . Allies Corrupted . | . . . Allies Melted . | . . . Intel | -11 -10 -10 ------- Run | Yrd Mat Min Active Infowar (turns) 297 | 4 293 . Seismic 297 | 4 293 . Robot Analysis Total . | . . . Derelict Logs Recovered . | . . . Drone Launches . | . . . Drone Recoveries . | . . . Exploration | -11 -10 -10 ------------- Run | Yrd Mat Min Turns Passed 570 | 75 390 105 Spaces Moved 284 | 46 202 36 Core 16 | 16 . . Treads . | . . . Legs 236 | 30 202 4 Wheels 32 | . . 32 Hover . | . . . Flight . | . . . Fastest Speed 50 | 50 120 80 Average Speed 112 | 95 120 84 Slowest Speed 190 | 120 190 120 Overloaded Moves . | . . . Propulsion Burnouts . | . . . Robots Hopped . | . . . Potential Cave-ins . | . . . Cave-ins Triggered . | . . . Exploration Rate (%) 18 | 3 38 13 Regions Visited 2 Branch Regions 1 Pre-discovered Areas . | . . . Known Exits Taken . | . . . Unknown Exits Taken 2 | 1 1 . Scrap Searched . | . . . Spaces Dug . | . . . Terrain Destroyed 29 | . . 29 Melee . | . . . Projectile . | . . . AOE 29 | . . 29 Terrain Rammed . | . . . Walls Destroyed . | . . . Machines Disabled . | . . . Actions | -11 -10 -10 --------- Run | Yrd Mat Min Total 454 | 68 297 89 Wait 86 | . 54 32 Move 282 | 45 201 36 Hop . | . . . Pick Up 16 | 8 7 1 Fast Attach 1 | 1 . . Attach 14 | 6 4 4 Detach . | . . . Swap 2 | . . 2 Drop 1 | . 1 . Fire 52 | 8 30 14 Melee . | . . . Ram . | . . . Kick . | . . . Crush . | . . . Escape Stasis . | . . . Rewire . | . . . Trap . | . . . Miscellaneous . | . . . Route ------- -11/Scrapyard -10/Materials (discovered 2 exits: [*Mat] / [*Min]) -10/Mines History --------- Turn | Location | Event 3 | -11/Scrapyard | Discovered new exit (range 16) 76 | -11/Scrapyard | Entered Materials 147 | -10/Materials | Discovered new exit (range 15) 226 | -10/Materials | Discovered new exit (range 8) 302 | -10/Materials | Build established: Mutant 400 | -10/Materials | Lost 4 parts (1n1u2w) 466 | -10/Materials | Entered Mines 467 | -10/Mines | Assembled infested the area 474 | -10/Mines | Core integrity fell below 50% 489 | -10/Mines | Core integrity fell below 20% 525 | -10/Mines | Lost 5 parts (2p1n2w) 527 | -10/Mines | Destroyed 18 combat bots 571 | -10/Mines | Destroyed by D-53 Grenadier with Mini Grenade Launcher Last Messages --------------- 00486_ as-02151 destroyed. 00488_ The unstable cave ceiling collapses. 00490_ System corrupted: Energy discharge (-26). 00494_ Lgt. Assault Rifle destroyed. 00494_ System corrupted by crushing effect (+2). 00495_ Destroyed Asb. Hover Unit. 00498_ as-60157 destroyed. 00503_ The unstable cave ceiling collapses. 00506_ S-10 Pest destroyed. 00507_ The unstable cave ceiling collapses. 00509_ Acquired 7 matter. 00512_ Acquired Wheel. 00514_ Acquired 11 matter. 00518_ Acquired 1 matter. 00521_ Acquired 10 matter. 00531_ System corrupted: Component data lost. 00571_ C-30 ARC bursts open, deploying its payload. 00571_ D-53 Grenadier unfolds itself. Map ----- +----------------------------------------------------+ | ??????????????????????????????? | | ??????????????????????????????? | | ??????????????????????????????? | | ?????????????????????##???????? | | ?????????????????????#T######?? | | ?????????????????????# #?? | | ?????????????????????# #?? | | ?????????????????????# #?? | | ?????????????????????# #?? | | ?????????????????????# ! ##? | | ?????????????????????# % #? | | ?????????????????????# % #? | | ?????????????????????### ! ##? | | ?????????????????????### ##? | | ?????????????????????# #? | | ????????????????????## # #? | | ????????????????????# # #? | | ????????????##??????# #? | | ???????????## ??### #? | | ??????????# ## # #? | | ?????????? < # #? | | ?????????? = ####? | | ?????????? d = ##?? | | ?????????? d% #??? | | ?????????? ## #??? | | ??????????? ######?###@ #??? | | ???????????? ??????##### ###? | | ???????????? ???????# #? | | ????????????????????# #? | | ????????????????????# #? | | ????????????????????#""" #? | | ????????????????????#""" #? | | ????????????????????#""" #? | | ????????????????????# #? | | ????????????????????#""" #? | | ????????????????????#""" #? | | ????????????????????#""" #? | | ????????????????????# #? | | ??????????????????????########? | | ??????????????????????????????? | | ??????????????????????????????? | | ??????????????????????????????? | | ??????????????????????????????? | | ??????????????????????????????? | | ??????????????????????????????? | | ??????????????????????????????? | | ??????????????????????????????? | | ??????????????????????????????? | | ??????????????????????????????? | | ??????????????????????????????? | +----------------------------------------------------+ Best States ------------- Heat Dissipation 39 Energy Generation 10 Energy Capacity 250 Matter Stores 300 Matter Capacity 300 Sight Range 16 Terrain Scan Density 10 Evasion (%) 55 Item Schematics ----------------- None Robot Schematics ------------------ None Fabricated ------------ Nothing Repaired ---------- Nothing Alien Tech Used ----------------- None Achievements -------------- None Challenges ------------ None Game ------ Seed ThunderHugeTreads Manual? 0 Play Time 00:07:58 Cumulative 36.4 hours Start 2025.06.13 @ 03:50:53 End 2025.06.13 @ 03:58:02 Sessions 1 Manual Loads 0 Difficulty Rogue Special Mode None Game No. 26 Rogue 7 Adventurer 0 Explorer 19 Win Type - Total 0 Types 0/0/0/0/0/0/0/0/0/0 Lore% 37 Gallery% 29 Achievement% 67 Wizard Run 0 Options --------- Layout 1 ASCII 0 Keyboard 0 Movement Mouse Keybinds 0 Fullscreen 2 Font 16/SmallcapsGlow Map View 50x40 Zoom Use 0% Tactical HUD 1 Map Filters NONE Filters NONE Steam SD RUN: 6293d73d-d395-4dfe-8e64-b7287a5d9a37